bitfinex/quotes_ETHUSD_20250905
["timestamp","ask_amount","ask_price","bid_price","bid_amount"]
[1757089474366,0.7696,4292.4,4292.3,20.78375327]
[1757089474820,1.1985,4292.4,4292.3,14.5]
[1757089474995,1.31835,4292.4,4292.3,14.5]
[1757089475172,0.7696,4292.4,4292.3,16.82975327]
[1757089475557,0.001,4292.4,4292.3,2.32975327]
[1757089475762,0.001,4292.4,4292.3,3.43365327]
[1757089476068,0.001,4292.4,4292.3,3.54965327]
[1757089476268,0.001,4292.4,4292.3,7.01565327]
[1757089476496,0.001,4292.4,4292.3,9.28356124]
[1757089477409,0.001,4292.4,4292.3,23.78356124]
[1757089477578,0.001,4292.4,4292.3,23.31756124]
[1757089478209,0.2963,4292.4,4292.3,20.73775327]
[1757089478380,0.001,4292.4,4292.3,20.73775327]
[1757089479814,0.001,4292.4,4292.3,21.02625327]
[1757089479977,0.001,4292.4,4292.3,21.47805327]
[1757089480381,1e-08,4292.8,4292.7,3.12153618]
[1757089480581,1e-08,4292.8,4292.7,11.05994963]
[1757089480806,1e-08,4292.8,4292.7,11.77695427]
[1757089482520,1e-08,4292.8,4292.7,11.32515427]
[1757089482919,1e-08,4292.8,4292.7,11.03665427]
[1757089483325,1e-08,4292.8,4292.7,11.32515427]
[1757089483523,1e-08,4292.8,4292.7,11.77695427]
[1757089484535,1e-08,4292.8,4292.7,11.32515427]
[1757089485032,1e-08,4292.8,4292.7,11.77695427]
[1757089485332,1e-08,4292.8,4292.7,12.73175427]
[1757089486648,0.001,4292.9,4292.8,6.12148192]
[1757089486855,0.001,4292.9,4292.8,9.45027805]
[1757089487053,0.001,4292.9,4292.8,9.62117889]
[1757089487365,0.001,4292.9,4292.8,24.12117889]
[1757089487523,0.001,4292.9,4292.8,26.57517889]
[1757089487849,0.001,4292.9,4292.8,27.60667889]
[1757089488211,0.001,4292.9,4292.8,23.65367889]
[1757089488409,0.001,4292.9,4292.8,27.60667889]
[1757089488615,0.001,4292.9,4292.8,27.43307001]
[1757089489010,0.001,4292.9,4292.8,23.48007001]
[1757089489219,0.001,4292.9,4292.8,27.43307001]
[1757089491134,0.001,4292.9,4292.8,27.90057001]
[1757089491531,0.001,4292.9,4292.8,44.19396945]
[1757089492137,0.001,4292.9,4292.8,27.43307001]
[1757089496743,0.001,4292.9,4292.8,27.76638808]
[1757089497574,0.001,4292.9,4292.8,34.35498476]
[1757089499159,0.001,4292.9,4292.8,34.82248476]
[1757089499888,0.001,4292.9,4292.8,34.35498476]
[1757089500984,0.001,4292.9,4292.8,27.76638808]
[1757089501189,0.2959,4292.9,4292.8,23.07308808]
[1757089501389,0.7822,4292.9,4292.8,27.02508808]
[1757089501791,0.001,4292.9,4292.8,27.02508808]
[1757089502090,0.001,4292.9,4292.8,27.31358808]
[1757089502675,0.001,4292.9,4292.8,27.02508808]
[1757089502991,0.7822,4292.9,4292.8,27.02508808]
[1757089503967,0.001,4292.9,4292.8,27.31358808]
[1757089504264,0.001,4292.9,4292.8,27.76538808]
[1757089506389,0.001,4292.9,4292.8,27.31358808]
[1757089506588,0.001,4292.9,4292.8,34.35398476]
[1757089507610,0.7822,4292.9,4292.8,22.28108808]
[1757089507792,0.7822,4292.9,4292.8,24.11479999]
[1757089507986,0.7822,4292.9,4292.8,24.90679999]
[1757089508830,0.4873,4292.9,4292.8,24.90679999]
[1757089509032,0.7822,4292.9,4292.8,24.90679999]
[1757089513241,0.7822,4292.9,4292.8,25.40843278]
[1757089516025,0.001,4292.9,4292.8,33.12281207]
[1757089516241,0.001,4292.9,4292.8,28.70331207]
[1757089516444,0.001,4292.9,4292.8,32.65531207]
[1757089516616,0.001,4292.9,4292.8,26.06671539]
[1757089516955,0.001,4292.9,4292.8,26.53421539]
[1757089517565,0.001,4293.3,4292.8,26.53421539]
[1757089517566,1e-08,4293.8,4293.7,3.12099364]
[1757089517778,1e-08,4293.8,4293.7,25.75263712]
[1757089517922,1e-08,4293.8,4293.7,26.03194719]
[1757089518117,1e-08,4293.8,4293.7,41.47024719]
[1757089518851,0.025,4294.8,4293.7,41.47024719]
[1757089518852,1e-08,4294.8,4294.7,6.12045134]
[1757089519024,1e-08,4294.8,4294.7,16.87920318]
[1757089519222,1e-08,4294.8,4294.7,19.10257505]
[1757089519470,1e-08,4294.8,4294.7,34.07337505]
[1757089519657,1e-08,4294.8,4294.7,34.16665875]
[1757089520421,1e-08,4294.8,4294.7,33.69585875]
[1757089521145,0.30700001,4294.8,4294.7,33.39325875]
[1757089521357,1.20550001,4294.8,4294.7,20.1398902]
[1757089521555,1.20550001,4294.8,4294.7,24.0908902]
[1757089521761,1.20550001,4294.8,4294.7,24.8828902]
[1757089524840,7.79409669,4294.8,4294.7,0.31143886]
[1757089525139,10.12252725,4294.8,4294.2,3.951]
[1757089525452,0.8985,4294.7,4294.2,3.951]
[1757089525649,0.307,4294.3,4294.2,3.951]
[1757089525858,1.2055,4294.3,4294.2,6.27972246]
[1757089526750,1.2055,4294.3,4294.2,3.951]
[1757089527272,1.2055,4294.3,4294.2,6.27972246]
[1757089529077,1.2055,4294.3,4294.2,20.77972246]
[1757089529459,1e-08,4294.8,4294.7,2.32845134]
[1757089529783,1e-08,4294.8,4294.2,30.67091914]
[1757089529784,1.20550001,4294.8,4294.3,5.07797225]
[1757089530102,1.20550001,4294.8,4294.4,3.0]
[1757089530103,0.30700001,4294.8,4294.4,3.0]
[1757089530245,0.30700001,4294.8,4294.6,2.32850501]
[1757089530449,0.30700001,4294.8,4294.3,3.0]
[1757089530644,0.8985,4294.7,4294.6,2.32845329]
[1757089530911,1.2055,4294.7,4294.6,6.27945329]
[1757089531594,1.2055,4294.7,4294.6,3.951]
[1757089531907,7.79409668,4294.7,4294.2,14.5]
[1757089532110,0.8985,4294.6,4294.2,14.5]
[1757089532277,0.307,4294.3,4294.2,16.82870373]
[1757089532472,1.2055,4294.3,4294.2,16.82870373]
[1757089532672,1.2055,4294.3,4294.2,2.32870373]
[1757089532872,1.2055,4294.3,4294.1,6.27974938]
[1757089533099,0.8985,4294.2,4294.1,6.27974938]
[1757089533408,0.8985,4294.2,4294.1,18.451]
[1757089533409,1.2055,4294.2,4294.1,18.451]
[1757089533591,1.2055,4294.2,4294.1,20.77977669]
[1757089534772,0.00100001,4294.8,4294.7,2.32845134]
[1757089535003,0.29330001,4294.8,4294.7,6.27945134]
[1757089535202,1.20640001,4294.8,4294.7,3.951]
[1757089535606,1.56006486,4294.8,4294.1,14.5]
[1757089535798,0.4604,4294.7,4294.4,2.32860578]
[1757089535975,0.9131,4294.7,4294.5,3.951]
[1757089536175,0.307,4294.3,4294.1,14.5]
[1757089536411,0.307,4294.3,4294.2,3.951]
[1757089536611,2.3294474,4294.8,4294.7,2.32845134]
[1757089536612,0.00100001,4294.8,4294.7,2.32845134]
[1757089536800,0.00100001,4294.8,4294.7,6.27945134]
[1757089537110,0.00100001,4294.8,4294.7,6.58205134]
[1757089537410,0.00100001,4294.8,4294.7,6.27945134]
[1757089538193,0.29330001,4294.8,4294.7,6.27945134]
[1757089538395,0.75370001,4294.8,4294.7,6.27945134]
[1757089538906,0.29330001,4294.8,4294.7,6.27945134]
[1757089539308,0.77520001,4294.8,4294.7,6.27945134]
[1757089539474,0.77520001,4294.8,4294.7,6.39545134]
[1757089540078,0.29330001,4294.8,4294.7,20.89545134]
[1757089540575,0.29330001,4294.8,4294.2,0.4708]
[1757089540576,1.22790001,4294.8,4294.1,3.951]
[1757089540781,1.22790001,4294.8,4293.7,1.716]
[1757089540782,6.58859668,4294.6,4294.0,3.951]
[1757089540977,0.29330001,4294.8,4292.8,7.57682947]
[1757089540978,0.2939,4294.1,4293.1,0.29330001]
[1757089541179,6.58859668,4293.8,4293.2,3.953]
[1757089541490,6.58859668,4293.8,4293.3,2.329199]
[1757089541815,6.58859668,4293.8,4293.2,3.953]
[1757089542006,0.2852,4293.3,4293.1,3.953]
[1757089542185,0.4819,4293.2,4293.1,3.953]
[1757089542535,0.7958,4293.2,4293.1,6.28231914]
[1757089543079,0.3139,4293.2,4293.1,6.28231914]
[1757089543476,0.3139,4293.2,4292.8,3.029]
[1757089543477,0.7958,4293.2,4292.8,3.029]
[1757089543841,0.9132,4293.1,4292.8,0.029]
[1757089544241,0.3139,4292.9,4292.8,2.35848192]
[1757089544415,0.4819,4293.1,4292.8,2.35848192]
[1757089544605,2.76041217,4293.5,4293.0,2.32937339]
[1757089544606,0.4313,4293.5,4293.0,2.32937339]
[1757089544811,0.4819,4293.4,4292.9,2.32942765]
[1757089545039,0.4819,4293.4,4293.0,2.32937334]
[1757089545343,0.2852,4293.0,4292.8,0.029]
[1757089545526,0.2852,4293.0,4292.8,2.3584578]
[1757089545706,0.9416,4292.9,4292.8,0.029]
[1757089545906,0.4819,4292.9,4292.8,0.029]
[1757089546215,0.4819,4293.2,4292.8,2.35844853]
[1757089546434,0.4819,4293.1,4292.8,2.35848143]
[1757089546638,0.287,4292.9,4292.8,0.029]
[1757089547052,1.2268,4292.9,4292.8,0.029]
[1757089547559,0.7689,4292.9,4292.8,0.029]
[1757089549156,0.7689,4292.9,4292.8,2.35848192]
[1757089549529,0.287,4292.9,4292.8,2.35848192]
[1757089550160,11.02249668,4293.3,4292.8,2.35848192]
[1757089550469,0.3139,4292.9,4292.8,2.35848192]
[1757089550965,0.3139,4292.9,4292.8,0.029]
[1757089551127,0.3139,4292.9,4292.8,2.35848192]
[1757089551542,0.3139,4292.9,4292.8,0.029]
[1757089551980,0.7958,4292.9,4292.8,2.35848192]
[1757089552276,2.1764,4294.2,4292.8,1.249]
[1757089552474,0.116,4293.8,4293.3,2.32918023]
[1757089552641,0.116,4293.8,4293.3,2.32918768]
[1757089552837,0.4819,4293.7,4293.3,2.32918768]
[1757089553070,0.4819,4293.6,4293.3,2.32918768]
[1757089553237,0.2852,4293.4,4293.3,2.32918768]
[1757089553441,3.952,4294.0,4293.4,0.116]
[1757089553642,0.116,4294.1,4293.9,2.32885275]
[1757089553964,0.4819,4294.3,4293.8,2.3289154]
[1757089553965,4.4339,4294.3,4293.8,2.3289154]
[1757089554171,0.2852,4293.9,4293.4,2.32910953]
[1757089554338,0.116,4293.8,4293.1,0.81596068]
[1757089554545,0.287,4293.2,4293.0,2.32934229]
[1757089554772,0.287,4293.2,4292.9,18.452]
[1757089554773,0.4819,4293.1,4292.9,18.452]
[1757089554940,0.4819,4293.1,4292.9,16.82941239]
[1757089555140,0.2887,4293.0,4292.9,14.5]
[1757089555337,0.4819,4293.8,4292.9,0.3162]
[1757089555540,0.9433,4293.8,4292.8,2.35845715]
[1757089555777,2.32913609,4293.5,4292.9,2.32941735]
[1757089556081,0.4819,4293.4,4292.8,0.029]
[1757089556288,0.4819,4293.4,4292.9,2.32939821]
[1757089556504,0.4819,4293.3,4292.9,2.32939821]
[1757089557763,0.4819,4293.3,4292.8,0.029]
[1757089558292,0.4819,4293.3,4292.9,2.32938579]
[1757089558700,2.32909016,4293.6,4293.0,2.32932597]
[1757089558910,0.4819,4293.7,4292.8,0.029]
[1757089559220,0.4819,4294.3,4293.6,2.32900918]
[1757089559372,4.04375103,4294.2,4293.6,2.32900918]
[1757089559568,4.04375082,4294.2,4293.6,2.32900573]
[1757089560014,1.715,4294.2,4293.8,2.32893839]
[1757089560302,0.2852,4293.9,4293.4,2.32915097]
[1757089560505,1.4941902,4294.2,4293.9,2.32883452]
[1757089560827,10.0853117,4294.8,4293.5,0.4462]
[1757089560828,0.00100001,4294.8,4294.6,6.12050556]
[1757089561122,0.00100001,4294.8,4294.6,22.33650556]
[1757089561429,0.00100001,4294.8,4294.6,27.54350556]
[1757089561636,0.00100001,4294.8,4294.6,29.81141353]
[1757089563904,0.00100001,4294.8,4294.6,29.90470549]
[1757089564420,1e-08,4294.9,4294.8,6.12039713]
[1757089564802,1e-08,4294.9,4294.8,7.34039713]
[1757089566430,1e-08,4294.9,4294.8,11.32239713]
[1757089566602,1e-08,4294.9,4294.8,13.5903051]
[1757089567651,0.4819,4296.9,4295.4,3.12007189]
[1757089567949,0.4819,4296.5,4295.4,10.10007189]
[1757089568106,0.4819,4296.5,4295.4,25.36247189]
[1757089568307,0.4819,4296.5,4295.4,25.47847189]
[1757089568637,0.4819,4296.5,4295.4,27.74637986]
[1757089568969,0.4819,4296.5,4295.4,28.20397986]
[1757089570443,0.4819,4296.5,4295.4,28.68587986]
[1757089570638,0.4819,4296.5,4295.4,28.22827986]
[1757089570840,0.4819,4296.5,4295.4,28.70117986]
[1757089571156,0.026,4295.8,4295.4,28.70117986]
[1757089571322,0.026,4295.8,4295.4,28.22827986]
[1757089571641,0.026,4295.8,4295.4,27.78207986]
[1757089571826,0.026,4295.8,4295.4,25.19797189]
[1757089572241,0.026,4295.8,4295.4,25.48607189]
[1757089572831,0.026,4295.8,4295.4,25.19797189]
[1757089573047,0.2886,4295.5,4295.4,25.19797189]
[1757089573412,0.001,4295.5,4295.4,25.19797189]
[1757089573638,0.001,4295.5,4295.4,27.46587986]
[1757089573951,0.001,4295.5,4295.4,27.75397986]
[1757089574147,0.001,4295.5,4295.4,28.19327986]
[1757089575433,0.001,4295.5,4295.4,13.69327986]
[1757089575940,0.001,4295.5,4295.4,28.19327986]
[1757089577843,0.001,4295.5,4295.4,27.75397986]
[1757089578045,0.001,4295.5,4295.4,28.19327986]
[1757089582149,0.001,4295.5,4295.4,27.75397986]
[1757089582815,0.001,4295.5,4295.4,28.19327986]
[1757089583013,0.001,4295.5,4295.4,27.75397986]
[1757089583922,0.001,4295.5,4295.4,28.19327986]
[1757089584452,0.001,4295.5,4295.4,27.75397986]
[1757089584817,0.001,4295.5,4295.4,28.19327986]
[1757089585020,0.001,4295.5,4295.4,28.66617986]
[1757089586455,0.001,4295.5,4295.4,23.77397986]
[1757089586617,0.001,4295.5,4295.4,28.17727986]
[1757089588043,0.001,4295.5,4295.4,23.48587986]
[1757089588044,0.2881,4295.5,4295.4,23.48587986]
[1757089588242,0.2881,4295.5,4295.4,25.18097189]
[1757089588243,0.7732,4295.5,4295.4,25.18097189]
[1757089588576,0.001,4295.5,4295.4,25.18097189]
[1757089588730,0.2886,4295.5,4295.4,25.18097189]
[1757089588936,0.001,4295.5,4295.4,25.18097189]
[1757089589338,0.2881,4295.5,4295.4,25.18097189]
[1757089589850,0.7732,4295.5,4295.4,21.21797189]
[1757089590174,1.2311,4295.5,4295.4,25.17997189]
[1757089590470,1.2311,4295.5,4295.4,6.88797189]
[1757089590655,1.2311,4295.5,4295.4,6.40607189]
[1757089592383,1.2311,4295.5,4295.4,3.961]
[1757089592967,1.2311,4295.5,4295.4,6.28907189]
[1757089593265,0.2881,4295.5,4295.4,6.28907189]
[1757089593872,0.2886,4295.5,4295.4,6.28907189]
[1757089594270,0.001,4295.5,4295.4,7.36917189]
[1757089594567,0.001,4295.5,4295.4,11.69776949]
[1757089595688,0.001,4295.5,4295.4,26.19776949]
[1757089596974,0.001,4295.5,4295.4,25.81813991]
[1757089599176,0.001,4295.5,4295.4,25.81713991]
[1757089599476,0.001,4295.5,4295.4,25.84713991]
[1757089601967,0.001,4295.5,4295.4,26.32463991]
[1757089604679,0.001,4296.0,4295.9,3.11980092]
[1757089604977,0.001,4296.0,4295.9,10.97987387]
[1757089605281,0.001,4296.0,4295.9,26.70159587]
[1757089605501,0.025,4297.8,4295.9,26.70159587]
[1757089605502,0.025,4297.8,4297.5,2.32692469]
[1757089605779,0.4329,4297.4,4297.3,3.11904256]
[1757089605958,0.8893,4297.4,4297.3,3.3369701]
[1757089606285,1.1983,4297.4,4297.3,6.6229701]
[1757089606656,1.1983,4297.4,4297.3,9.6229701]
[1757089607881,1.1983,4297.4,4297.3,5.44304256]
[1757089608084,1.1983,4297.4,4297.3,9.40504256]
[1757089608581,1.1983,4297.4,4297.3,4.076]
[1757089608885,1.1983,4297.4,4297.3,20.78704256]
[1757089609088,1.1983,4297.4,4297.3,3.959]
[1757089609566,1.1983,4297.4,4297.3,6.28604256]
[1757089609884,1.1983,4297.4,4297.3,3.959]
[1757089610089,1.1983,4297.4,4297.3,6.28604256]
[1757089610289,1.1983,4297.4,4297.3,3.959]
[1757089611098,1.1983,4297.4,4297.3,6.28604256]
[1757089612301,1.1983,4297.4,4297.3,3.959]
[1757089613174,1.1983,4297.4,4297.3,6.28604256]
[1757089613382,1.1983,4297.4,4297.3,3.959]
[1757089614108,0.141,4297.8,4297.3,3.959]
[1757089614109,0.025,4297.8,4297.7,3.11882597]
[1757089614314,0.025,4297.8,4297.7,10.07382597]
[1757089614493,0.025,4297.8,4297.7,10.84132597]
[1757089614671,0.025,4297.8,4297.7,25.34742597]
[1757089615004,0.025,4297.8,4297.7,25.81772597]
[1757089615213,0.025,4297.8,4297.7,28.08563394]
[1757089617606,0.025,4297.8,4297.7,30.21539143]
[1757089617917,0.025,4297.8,4297.7,24.88902597]
[1757089619210,1.2233,4297.8,4297.7,3.97]
[1757089619519,0.7904,4297.8,4297.7,3.97]
[1757089619820,0.4814,4297.8,4297.7,3.97]
[1757089620002,0.025,4297.8,4297.7,3.97]
[1757089620187,0.025,4297.8,4297.7,6.29682597]
[1757089620707,0.025,4297.8,4297.7,3.97]
[1757089621021,0.025,4297.8,4297.7,3.972]
[1757089621477,0.025,4297.8,4297.5,14.5]
[1757089621822,0.025,4297.8,4297.7,2.32682597]
[1757089622002,0.025,4297.8,4297.6,3.969]
[1757089622374,0.4814,4297.8,4297.6,3.969]
[1757089622811,0.025,4297.8,4297.6,3.969]
[1757089623314,0.025,4297.8,4297.7,2.32682597]
[1757089623698,0.025,4297.8,4297.7,3.09432597]
[1757089624014,0.025,4297.8,4297.7,6.15423394]
[1757089624183,0.025,4297.8,4297.7,6.27023394]
[1757089624579,0.7904,4297.8,4297.7,2.44282597]
[1757089624781,1.2233,4297.8,4297.7,3.967]
[1757089625114,0.7904,4297.8,4297.7,3.967]
[1757089625325,0.4814,4297.8,4297.7,3.967]
[1757089625526,0.4814,4297.8,4297.4,0.116]
[1757089625527,0.4824,4297.8,4297.4,0.116]
[1757089625734,0.4824,4297.8,4297.6,2.32685006]
[1757089625932,0.4824,4297.8,4297.7,3.967]
[1757089626320,0.7914,4297.8,4297.7,3.967]
[1757089626500,0.7914,4297.8,4297.2,2.32705392]
[1757089626501,1.2243,4297.8,4297.2,2.32705392]
[1757089626827,0.5724,4297.7,4297.4,2.32698841]
[1757089627020,0.5724,4297.7,4297.5,3.966]
[1757089627425,0.5724,4297.7,4297.5,6.29292027]
[1757089627828,0.5724,4297.7,4297.5,3.966]
[1757089628219,0.7654,4297.6,4297.5,3.966]
[1757089628420,0.026,4297.8,4297.6,2.32688011]
[1757089628735,0.026,4297.8,4297.7,3.966]
[1757089630711,0.026,4297.8,4297.7,6.59602597]
[1757089630922,0.026,4297.8,4297.7,6.29282597]
[1757089631334,0.026,4297.8,4297.7,6.59602597]
[1757089631562,0.026,4297.8,4297.7,8.08391722]
[1757089632922,0.026,4297.8,4297.7,22.58391722]
[1757089633449,0.026,4297.8,4297.7,21.21202597]
[1757089633821,0.026,4297.8,4297.7,20.90882597]
[1757089635052,0.3192,4297.8,4297.7,6.40882597]
[1757089635259,0.3192,4297.8,4297.2,0.4804]
[1757089635260,0.7996,4297.8,4297.2,0.4804]
[1757089635417,0.7996,4297.8,4296.3,2.33155561]
[1757089635418,1.2514,4297.8,4296.3,0.004]
[1757089635614,2.32735372,4296.8,4296.3,0.004]
[1757089635818,2.32735372,4296.8,4296.3,3.969]
[1757089636018,0.3008,4296.4,4296.3,3.969]
[1757089636247,0.7812,4296.4,4296.3,6.2965842]
[1757089636631,0.7812,4296.4,4296.3,3.969]
[1757089636863,1.2255,4296.4,4296.3,0.004]
[1757089637161,1.2255,4296.4,4296.3,0.22176037]
[1757089637922,3.55303002,4296.4,4296.3,0.22176037]
[1757089638153,3.55303002,4296.4,4296.3,0.004]
[1757089639263,1.2255,4296.4,4296.3,0.004]
[1757089639775,0.7812,4296.4,4296.3,0.004]
[1757089640065,3.55303002,4296.4,4296.3,0.004]
[1757089643640,0.7812,4296.4,4296.3,0.004]
[1757089643840,3.10873002,4296.4,4296.3,0.004]
[1757089644253,0.7812,4296.4,4296.3,0.004]
[1757089644472,3.97,4296.6,4296.3,0.004]
[1757089644624,6.77784998,4296.6,4296.3,0.004]
[1757089645661,0.001,4296.4,4296.3,0.004]
[1757089646041,0.2942,4296.4,4296.3,0.004]
[1757089646225,0.7746,4296.4,4296.3,0.004]
[1757089646832,0.001,4296.4,4296.3,0.004]
[1757089647668,0.117,4296.4,4296.3,0.3072]
[1757089648180,0.001,4296.4,4296.3,4.02573918]
[1757089648482,0.001,4296.4,4296.3,18.64173918]
[1757089648771,0.001,4296.4,4296.3,21.64173918]
[1757089649743,0.001,4296.4,4296.3,22.43373918]
[1757089651249,0.001,4296.4,4296.3,26.40073918]
[1757089654180,0.001,4296.4,4296.3,21.18303918]
[1757089654367,0.001,4296.4,4296.3,25.14803918]
[1757089655145,0.001,4296.4,4296.3,24.71203918]
[1757089655347,0.001,4296.4,4296.3,20.44383918]
[1757089655683,0.3018,4296.4,4296.3,6.2955842]
[1757089655874,0.001,4296.4,4296.3,6.2955842]
[1757089656076,0.3018,4296.4,4296.3,6.2955842]
[1757089656381,0.001,4296.4,4296.3,6.2955842]
[1757089656885,0.3018,4296.4,4296.3,6.2955842]
[1757089657178,0.001,4296.4,4296.3,6.5987842]
[1757089658485,0.7746,4296.4,4296.3,0.004]
[1757089658668,0.7746,4296.4,4296.3,3.967]
[1757089658869,0.7746,4296.4,4296.3,6.2945842]
[1757089659069,0.7746,4296.4,4296.3,3.967]
[1757089659473,0.7746,4296.4,4296.3,0.004]
[1757089662153,1.2201,4296.4,4296.3,0.004]
[1757089662598,0.7746,4296.4,4296.3,0.004]
[1757089663176,1.2201,4296.4,4296.3,0.004]
[1757089663917,3.54763002,4296.4,4296.3,0.004]
[1757089668466,7.50263002,4296.4,4296.3,0.004]
[1757089670286,10.50263002,4296.4,4296.3,0.004]
[1757089671885,17.08528992,4296.4,4296.3,0.004]
[1757089673085,2.32853002,4296.4,4296.3,0.2933]
[1757089673286,0.001,4296.4,4296.3,0.2933]
[1757089673587,0.001,4296.4,4296.3,0.7667]
[1757089675020,0.001,4296.4,4296.3,3.5628842]
[1757089675220,0.001,4296.4,4296.3,1.2353]
[1757089675523,0.001,4296.4,4296.3,0.7667]
[1757089676121,0.001,4296.4,4296.3,0.2933]
[1757089676907,0.117,4296.4,4296.3,0.2933]
[1757089677121,0.117,4296.4,4296.3,0.004]
[1757089678028,3.20013002,4296.4,4296.3,0.004]
[1757089678630,0.4066,4296.4,4296.3,0.004]
[1757089678831,0.117,4296.4,4296.3,0.004]
[1757089679200,2.44453002,4296.4,4296.3,0.004]
[1757089679538,2.73413002,4296.4,4296.3,0.004]
[1757089679700,0.4066,4296.4,4296.3,0.004]
[1757089680028,3.20013002,4296.4,4296.3,0.004]
[1757089680228,0.4066,4296.4,4296.3,0.004]
[1757089680431,0.117,4296.4,4296.3,0.2933]
[1757089680634,2.44453002,4296.4,4296.3,0.2933]
[1757089680838,3.20013002,4296.4,4296.3,0.004]
[1757089681202,0.8726,4296.4,4296.3,0.004]
[1757089681404,3.20013002,4296.4,4296.3,0.004]
[1757089683102,3.64563002,4296.4,4296.3,0.004]
[1757089684735,6.64563002,4296.4,4296.3,0.004]
[1757089687548,2.61813002,4296.4,4296.3,0.004]
[1757089687847,2.61813002,4296.4,4296.3,0.7667]
[1757089687848,3.956,4296.4,4296.3,0.7667]
[1757089688425,0.001,4296.4,4296.3,1.2353]
[1757089688623,0.001,4296.4,4296.3,3.5628842]
[1757089689123,0.001,4296.4,4296.3,1.2353]
[1757089689431,0.001,4296.4,4296.3,3.5628842]
[1757089689626,0.001,4296.4,4296.3,0.7667]
[1757089690161,0.001,4296.4,4296.3,0.004]
[1757089690445,3.08903002,4296.4,4296.3,0.004]
[1757089691145,3.53933002,4296.4,4296.3,0.004]
[1757089692545,6.53933002,4296.4,4296.3,0.004]
[1757089695637,6.53933002,4296.4,4295.9,0.004]
[1757089695638,2.32774674,4296.0,4295.9,0.004]
[1757089695840,6.28274674,4296.0,4295.9,0.004]
[1757089696049,7.49354674,4296.0,4295.9,0.004]
[1757089697151,10.49354674,4296.0,4295.9,0.004]
[1757089698358,10.04474674,4296.0,4295.9,0.004]
[1757089698849,10.49354674,4296.0,4295.9,0.004]
[1757089699052,11.28554674,4296.0,4295.9,0.004]
[1757089699221,6.23580092,4295.9,4295.8,1e-08]
[1757089699554,0.792,4295.5,4295.3,1e-08]
[1757089699851,6.1202887,4295.0,4293.8,0.025]
[1757089700037,10.0752887,4295.0,4293.8,0.025]
[1757089700242,11.2861887,4295.0,4293.8,0.025]
[1757089700623,10.8416887,4295.0,4294.0,0.4456]
[1757089701267,11.2861887,4295.0,4293.8,0.025]
[1757089701858,0.13866742,4295.1,4294.9,0.766]
[1757089702019,6.2832887,4295.0,4294.9,0.766]
[1757089702222,6.5779887,4295.0,4294.9,0.004]
[1757089702551,7.0437887,4295.0,4294.9,0.004]
[1757089702970,6.2832887,4295.0,4294.9,0.3204]
[1757089703170,2.3282887,4295.0,4294.9,0.3204]
[1757089703463,3.962,4295.0,4294.9,0.3204]
[1757089703626,6.2902887,4295.0,4294.9,0.004]
[1757089704146,6.2902887,4295.0,4294.9,0.3204]
[1757089705358,6.2902887,4295.0,4294.9,0.004]
[1757089706233,6.2902887,4295.0,4294.9,0.3204]
[1757089706675,2.3282887,4295.0,4294.9,0.766]
[1757089706960,2.46691924,4295.1,4294.9,1.2532]
[1757089707123,3.959,4295.0,4294.9,0.3204]
[1757089707320,0.13866742,4295.1,4294.9,0.3204]
[1757089707556,4.21366742,4295.1,4294.9,2.64872462]
[1757089707762,4.21366742,4295.1,4295.0,3.2610887]
[1757089707968,4.21366742,4295.1,4295.0,1.2492]
[1757089708165,4.21366742,4295.1,4295.0,3.5774887]
[1757089708474,4.09766742,4295.1,4295.0,4.24136216]
[1757089708633,4.09766742,4295.1,4295.0,1.91307346]
[1757089708830,4.09766742,4295.1,4295.0,1.2492]
[1757089709060,4.09766742,4295.1,4295.0,0.762]
[1757089709469,4.09766742,4295.1,4295.0,1.2492]
[1757089709769,4.09766742,4295.1,4295.0,0.762]
[1757089710140,4.09766742,4295.1,4295.0,1.2492]
[1757089710859,4.09766742,4295.1,4295.0,3.5774887]
[1757089711044,0.13866742,4295.1,4295.0,3.5774887]
[1757089711249,0.13866742,4295.1,4295.0,4.24135891]
[1757089711977,0.13866742,4295.1,4295.0,1.2492]
[1757089712138,0.13866742,4295.1,4295.0,1.94900394]
[1757089712673,0.13866742,4295.1,4295.0,1.46180394]
[1757089712837,4.09666742,4295.1,4295.0,1.46180394]
[1757089713038,4.09666742,4295.1,4295.0,1.2492]
[1757089713339,4.09666742,4295.1,4295.0,0.762]
[1757089713540,0.13866742,4295.1,4295.0,0.762]
[1757089715575,0.13866742,4295.1,4295.0,3.5774887]
[1757089716742,0.13866742,4295.1,4295.0,0.762]
[1757089717243,0.13866742,4295.1,4295.0,3.0902887]
[1757089717742,0.13866742,4295.1,4295.0,0.762]
[1757089719192,0.13866742,4295.1,4295.0,3.0902887]
[1757089719672,0.13866742,4295.1,4295.0,3.5540887]
[1757089721376,0.13866742,4295.1,4294.9,0.004]
[1757089721550,2.46694442,4295.1,4294.9,0.004]
[1757089722073,2.3282887,4295.0,4294.9,0.004]
[1757089722253,2.46690208,4295.1,4294.9,0.004]
[1757089722592,0.13866742,4295.1,4294.9,0.7632]
[1757089722783,0.13866742,4295.1,4295.0,3.2624887]
[1757089723161,0.13866742,4295.1,4295.0,3.5512887]
[1757089723362,0.13866742,4295.1,4295.0,0.7592]
[1757089723668,0.13866742,4295.1,4295.0,3.0914887]
[1757089724204,0.13866742,4295.1,4295.0,3.5552887]
[1757089725094,0.13866742,4295.1,4295.0,1.227]
[1757089725248,0.13866742,4295.1,4295.0,0.004]
[1757089725581,0.13866742,4295.1,4295.0,0.2928]
[1757089725751,0.13866742,4295.1,4295.0,0.7632]
[1757089726474,0.13866742,4295.1,4295.0,0.2928]